bitfinex-derivatives/quotes_ETHF0:USTF0_20260113
["timestamp","ask_amount","ask_price","bid_price","bid_amount"]
[1768315891137,1.7811009,3148.3,3145.9,3.60893939]
[1768315891138,0.15899,3148.0,3145.9,3.44984939]
[1768315891642,1.7811009,3148.3,3146.1,3.44620863]
[1768315891936,1.7811009,3148.3,3146.1,3.60528863]
[1768315892828,0.16135073,3148.6,3146.3,3.44620863]
[1768315893541,0.16135073,3148.6,3146.5,3.60526863]
[1768315893734,0.00239073,3148.6,3146.9,3.44620863]
[1768315893934,0.00239073,3148.6,3146.9,3.60524863]
[1768315894632,0.00239073,3148.6,3147.1,3.44620863]
[1768315895337,0.00239073,3148.6,3147.1,3.60523863]
[1768315895924,0.00239073,3148.6,3147.2,0.15902]
[1768315896135,0.00239073,3148.6,3147.3,3.50253207]
[1768315896332,0.15891,3149.5,3147.3,3.50253207]
[1768315896539,0.95988226,3149.4,3147.5,3.50253207]
[1768315896741,0.95988226,3149.3,3147.5,3.50253207]
[1768315896931,1.9400109,3149.5,3147.5,3.50253207]
[1768315897132,0.95988109,3149.4,3147.5,3.50253207]
[1768315897435,0.95988109,3149.3,3147.5,3.50253207]
[1768315897735,0.95988109,3149.3,3147.5,3.66154207]
[1768315899035,0.00399262,3149.4,3148.0,3.50253207]
[1768315899534,1.57557957,3149.2,3148.1,3.50253207]
[1768315900527,0.00399262,3149.4,3148.1,3.50253207]
[1768315901343,0.96269877,3149.3,3148.1,3.50253207]
[1768315901642,0.00399262,3149.4,3148.1,3.50253207]
[1768315901842,0.96295493,3149.3,3148.1,3.50253207]
[1768315902045,0.00399262,3149.4,3148.1,3.50253207]
[1768315902241,0.96295493,3149.3,3148.1,3.50253207]
[1768315902433,0.00399262,3149.4,3148.3,3.50253207]
[1768315902633,0.00399262,3149.4,3148.3,3.50515929]
[1768315903034,0.00399262,3149.4,3148.4,3.66149207]
[1768315903335,3.60359848,3150.5,3148.7,3.66148207]
[1768315903536,0.96251872,3150.4,3148.7,3.66148207]
[1768315903732,1.57557957,3150.2,3148.7,3.66148207]
[1768315903932,1.57557957,3149.8,3148.7,3.66148207]
[1768315904128,1.57557957,3149.4,3148.3,0.00262722]
[1768315906537,1.57557957,3149.6,3148.3,0.00262722]
[1768315906737,0.96024771,3149.5,3148.3,0.00262722]
[1768315906938,0.96024771,3149.4,3148.3,0.00262722]
[1768315907137,1.57557957,3149.6,3148.3,0.00262722]
[1768315907346,2.53567273,3149.5,3148.3,0.00262722]
[1768315907545,1.57557957,3149.5,3148.3,0.00262722]
[1768315908243,0.0035464,3149.8,3148.3,3.50515929]
[1768315908445,0.96021584,3149.7,3148.3,3.50515929]
[1768315908634,1.57557957,3149.5,3148.3,3.50515929]
[1768315908831,1.57557957,3148.5,3147.5,0.15901]
[1768315909246,1.57557957,3148.9,3147.3,3.50253207]
[1768315909647,1.57557957,3148.5,3147.3,3.66155207]
[1768315909946,1.57557957,3148.5,3147.3,3.50573697]
[1768315910732,1.57557957,3148.5,3146.4,0.15906]
[1768315910733,1.57557957,3147.7,3146.4,0.15906]
[1768315911343,1.57557957,3147.9,3146.4,3.66159207]
[1768315911733,1.57557957,3147.9,3146.4,3.50253207]
[1768315911935,1.57557957,3147.9,3146.4,3.5054406]
[1768315912343,1.57557957,3147.5,3146.4,3.5054406]
[1768315912544,1.57958546,3147.5,3146.4,0.00290853]
[1768315912740,0.00400589,3147.5,3146.4,0.00290853]
[1768315913348,0.00400589,3147.5,3146.4,3.5054406]
[1768315913749,5.02031805,3148.6,3146.5,3.50253207]
[1768315913945,0.96033481,3148.5,3146.5,3.50253207]
[1768315914140,0.96033481,3148.4,3146.5,3.50253207]
[1768315914449,1.73452957,3148.8,3146.5,3.50253207]
[1768315914647,1.73452957,3148.8,3146.4,0.00290853]
[1768315914648,0.96035696,3148.7,3146.9,3.50253207]
[1768315914949,0.00325809,3148.8,3147.3,3.50253207]
[1768315915148,1.57557957,3148.6,3146.7,3.50253207]
[1768315915344,1.57557957,3148.6,3146.9,1.269]
[1768315915545,1.57557957,3148.6,3147.0,3.50253207]
[1768315915744,0.00325809,3148.8,3147.4,3.50253207]
[1768315917852,1.57557957,3148.3,3146.9,3.50253207]
[1768315918750,1.57557957,3147.5,3146.4,0.00290853]
[1768315918962,1.57557957,3147.9,3146.4,0.00290853]
[1768315920245,0.15899,3148.0,3146.4,3.5054406]
[1768315920539,2.84857957,3148.6,3146.4,3.6645006]
[1768315920850,0.9612641,3148.5,3146.6,3.66158207]
[1768315921153,5.02031805,3148.7,3146.8,3.50253207]
[1768315921339,1.57557957,3148.3,3146.8,3.50253207]
[1768315921745,1.57557957,3148.3,3146.7,0.15905]
[1768315922554,1.57557957,3148.3,3146.7,3.66158207]
[1768315922741,0.00325809,3148.8,3147.1,3.50253207]
[1768315923059,0.00325809,3148.8,3147.1,3.66156207]
[1768315923558,0.00325809,3148.8,3147.2,3.66155207]
[1768315923954,3.60362848,3150.0,3148.1,0.15898]
[1768315924152,0.9614884,3149.9,3148.1,3.66151207]
[1768315924355,1.57557957,3149.5,3147.7,1.269]
[1768315924554,1.57557957,3149.5,3147.6,0.159]
[1768315924755,1.57557957,3149.5,3147.6,3.71613645]
[1768315924961,1.57557957,3149.1,3147.6,3.55713645]
[1768315925153,1.57557957,3149.1,3147.0,4.98516645]
[1768315925461,1.57557957,3149.1,3147.1,3.55713645]
[1768315926659,1.57557957,3149.1,3147.3,0.15902]
[1768315927665,0.15892,3149.3,3147.3,0.15902]
[1768315927666,1.73449957,3149.3,3147.3,3.71615645]
[1768315927862,1.57557957,3149.3,3147.5,3.55713645]
[1768315928261,0.00251331,3149.5,3147.5,3.55713645]
[1768315928458,0.00251331,3149.5,3147.6,3.71613645]
[1768315928660,1.57557957,3148.8,3147.1,3.55713645]
[1768315929662,1.57557957,3148.0,3146.6,6.73613645]
[1768315930959,1.57557957,3148.0,3146.4,0.00290853]
[1768315931257,1.57557957,3147.6,3146.4,0.00290853]
[1768315931456,0.15898,3148.1,3146.4,0.00290853]
[1768315931457,1.73455957,3148.1,3146.4,0.00290853]
[1768315932563,1.57557957,3147.7,3146.4,0.00290853]
[1768315933859,1.57557957,3148.3,3146.4,0.00290853]
[1768315934063,1.57557957,3148.3,3146.4,3.56004498]
[1768315934864,3.64036545,3148.5,3146.4,3.56004498]
[1768315934865,1.57557957,3147.9,3146.4,3.56004498]
[1768315935658,1.57557957,3148.2,3146.4,3.56004498]
[1768315935966,1.57557957,3148.2,3146.4,3.71911498]
[1768315936668,1.57557957,3148.2,3146.5,3.38907693]
[1768315937262,1.57557957,3148.2,3146.4,1.43097853]
[1768315938268,1.57557957,3148.3,3146.5,3.38907693]
[1768315938469,1.57557957,3147.9,3146.4,0.16197853]
[1768315938861,1.57557957,3147.9,3146.4,0.00290853]
[1768315939068,3.65795885,3148.2,3146.4,0.00290853]
[1768315939069,1.57557957,3147.5,3146.4,0.00290853]
[1768315940669,1.57557957,3147.1,3145.5,1.269]
[1768315940869,1.57557957,3146.7,3145.0,3.18]
[1768315941365,3.81698885,3147.1,3145.1,3.38907693]
[1768315941569,1.57557957,3147.0,3145.1,3.38907693]
[1768315941762,1.57927012,3147.0,3145.1,3.39233471]
[1768315941959,5.23722897,3147.0,3145.1,3.39233471]
[1768315942169,3.65795885,3146.9,3145.1,0.00325778]
[1768315942471,1.57557957,3146.6,3145.1,0.00325778]
[1768315942663,1.57557957,3146.2,3145.1,0.00325778]
[1768315943270,3.65795885,3146.6,3145.1,0.00325778]
[1768315943773,1.57557957,3146.4,3145.1,0.00325778]
[1768315944171,3.65795885,3146.6,3145.1,0.00325778]
[1768315945969,1.57557957,3146.7,3145.1,0.00325778]
[1768315946876,0.00369055,3147.0,3145.3,0.15912]
[1768315947175,0.00369055,3147.0,3145.6,0.15911]
[1768315947674,0.00369055,3147.0,3145.6,3.54818693]
[1768315947879,0.00369055,3147.0,3145.7,3.54817693]
[1768315948173,0.00369055,3147.0,3145.8,3.54817693]
[1768315948578,0.00369055,3147.0,3145.9,3.54816693]
[1768315948873,0.00369055,3147.0,3145.1,0.00325778]
[1768315948874,1.57557957,3146.5,3145.1,3.39233471]
[1768315949079,1.57557957,3146.9,3145.3,3.54819693]
[1768315949476,0.00369055,3147.0,3145.6,0.1591]
[1768315949780,0.00369055,3147.0,3145.6,3.54817693]
[1768315950077,1.57557957,3146.9,3145.6,3.54817693]
[1768315950379,1.57557957,3146.9,3145.2,1.269]
[1768315950574,0.00369055,3147.0,3145.6,3.38907693]
[1768315950779,0.00369055,3147.0,3146.0,3.54815693]
[1768315951080,1.57557957,3148.5,3146.4,3.54813693]
[1768315951275,7.16252105,3149.2,3147.1,0.15903]
[1768315951276,3.65795885,3149.2,3147.1,0.15903]
[1768315951476,1.73448957,3149.5,3147.5,3.38907693]
[1768315951673,1.57557957,3149.7,3147.5,3.38907693]
[1768315951871,1.57557957,3149.3,3147.7,3.54807693]
[1768315952274,1.57557957,3148.9,3147.5,0.00329188]
[1768315952684,3.65795885,3149.6,3147.5,0.00329188]
[1768315952685,1.57557957,3148.4,3147.5,0.00329188]
[1768315953077,1.57557957,3148.4,3146.5,3.38907693]
[1768315953278,1.57557957,3148.4,3146.6,1.269]
[1768315954077,1.57557957,3148.4,3146.6,1.27264689]
[1768315954482,1.57557957,3148.4,3146.6,1.43170689]
[1768315954779,1.57557957,3148.4,3146.7,3.35536536]
[1768315955181,1.57557957,3148.7,3146.7,3.35536536]
[1768315955381,1.57557957,3148.3,3146.7,3.35536536]
[1768315958280,1.57557957,3148.7,3146.7,3.35536536]
[1768315959288,3.65795885,3149.1,3146.9,3.35536536]
[1768315959586,0.15891,3149.5,3147.3,3.35536536]
[1768315959786,4.31356509,3149.4,3147.3,3.35536536]
[1768315959981,3.35440551,3149.4,3147.4,1.269]
[1768315960581,3.35440551,3149.2,3147.4,1.269]
[1768315960779,3.35440551,3149.2,3147.2,1.269]
[1768315960979,1.78667418,3148.7,3146.7,3.51441536]
[1768315961174,1.78667418,3148.7,3146.8,1.269]
[1768315961382,3.51333551,3149.2,3146.9,3.35536536]
[1768315961590,4.31332091,3149.1,3146.9,3.35536536]
[1768315961781,4.31332091,3149.0,3146.9,3.35536536]
[1768315961982,3.35440551,3149.0,3146.9,3.35536536]
[1768315962488,3.35440551,3149.0,3146.9,3.51440536]
[1768315962687,3.35440551,3149.0,3147.0,3.51440536]
[1768315964488,3.35440551,3148.9,3147.0,3.51440536]
[1768315964684,5.14107969,3148.5,3146.6,0.00364689]
[1768315965394,5.14107969,3148.5,3146.6,0.16269689]
[1768315965585,0.15895,3148.8,3146.9,3.35536536]
[1768315966282,1.78667418,3149.0,3146.9,3.35536536]
[1768315966479,3.35440551,3149.1,3147.2,3.51438536]
[1768315967586,3.98152105,3150.6,3147.2,3.51438536]
[1768315967587,3.35440551,3150.2,3148.1,3.35536536]
[1768315967786,3.35440551,3150.2,3148.3,3.51433536]
[1768315967988,3.25440551,3150.8,3148.7,3.35536536]
[1768315968188,3.25440551,3150.8,3148.8,3.35536536]
[1768315968787,3.25440551,3150.8,3148.4,0.15896]
[1768315968788,3.41324551,3150.8,3148.4,0.15896]
[1768315969089,0.00260048,3150.8,3148.4,1.42796]
[1768315969294,1.78667418,3150.4,3148.4,1.42796]
[1768315969496,1.78667418,3150.4,3148.5,3.35536536]
[1768315970385,3.35440551,3150.3,3147.9,3.35536536]
[1768315970593,3.51327551,3150.3,3147.9,3.35536536]
[1768315970995,3.35440551,3149.7,3147.8,0.15899]
[1768315971392,3.35440551,3149.7,3147.8,3.51435536]
[1768315972097,3.35440551,3150.5,3148.0,3.51434536]
[1768315972490,3.35440551,3150.5,3148.2,3.35536536]
[1768315973802,3.51326551,3150.5,3148.2,3.35536536]
[1768315973987,5.14107969,3150.2,3148.2,3.35536536]
[1768315974799,0.15886,3150.5,3148.2,3.35536536]
[1768315974993,3.35440551,3150.7,3148.6,0.15895]
[1768315975192,0.00260048,3150.8,3149.1,3.51429536]
[1768315975394,0.00260048,3150.8,3149.2,3.35536536]
[1768315975800,0.00260048,3150.8,3149.3,0.15892]
[1768315976195,0.00260048,3150.8,3149.5,0.1589]
[1768315976394,0.00260048,3150.8,3149.5,3.51426536]
[1768315977904,0.00260048,3150.8,3149.5,0.1589]
[1768315978400,0.00260048,3150.8,3149.1,0.00398112]
[1768315978600,0.00260048,3150.8,3149.2,0.15892]
[1768315978804,0.00260048,3150.8,3149.2,1.42692]
[1768315979306,0.00260048,3150.8,3149.2,4.78228536]
[1768315979499,0.00260048,3150.8,3149.5,0.15891]
[1768315979693,0.00260048,3150.8,3149.6,3.35536536]
[1768315979895,0.00260048,3150.8,3149.7,0.1589]
[1768315980702,0.00260048,3150.8,3149.4,1.268]
[1768315982803,0.00260048,3150.8,3149.5,0.15891]
[1768315983292,5.14107969,3150.7,3149.1,0.00398112]
[1768315984502,5.14107969,3150.2,3148.3,0.15897]
[1768315984696,5.14107969,3150.2,3148.3,1.42697]
[1768315985304,1.78667418,3149.6,3148.0,3.35536536]
[1768315985500,1.78667418,3149.6,3148.0,3.35807008]
[1768315985898,1.78667418,3149.6,3148.0,0.00270472]
[1768315986505,5.36651139,3149.6,3148.0,0.00270472]
[1768315987002,3.57983721,3150.2,3148.2,3.40015399]
[1768315987200,0.956953,3150.1,3148.2,3.40015399]
[1768315987398,3.57983721,3150.2,3148.2,3.40015399]
[1768315987602,6.32373862,3150.1,3148.2,3.40015399]
[1768315987900,0.15887,3150.3,3148.2,3.40015399]
[1768315988103,5.36651139,3150.6,3148.0,0.00270472]
[1768315988104,5.36651139,3150.6,3148.5,3.40015399]
[1768315988306,0.95713774,3150.5,3148.5,3.55911399]
[1768315988605,0.95713774,3150.4,3148.5,3.55911399]
[1768315988908,0.15887,3150.4,3148.5,3.55911399]
[1768315989603,3.73870721,3150.4,3148.5,3.55911399]
[1768315989904,0.00260048,3150.8,3148.8,3.55909399]
[1768315990103,0.95764405,3150.7,3148.9,3.55909399]
[1768315990300,0.00260048,3150.8,3148.9,3.55909399]
[1768315990505,0.95773651,3150.7,3148.9,3.55909399]
[1768315990806,0.00260048,3150.8,3148.9,3.55909399]
[1768315991003,1.11660037,3150.7,3148.9,3.40015399]
[1768315991202,1.94553418,3150.5,3148.4,0.15896]
[1768315991700,3.57983721,3150.4,3148.4,3.55911399]
[1768315991907,0.95813482,3150.3,3148.4,3.55911399]
[1768315992105,3.57983721,3150.4,3148.4,3.55911399]
[1768315992306,0.95813433,3150.3,3148.4,3.55911399]
[1768315992504,3.57983721,3150.4,3148.4,3.55911399]
[1768315992707,0.9585019,3150.3,3148.5,3.55911399]
[1768315992909,0.00260048,3150.8,3149.0,3.55908399]
[1768315993702,0.95878307,3150.7,3149.0,0.15893]
[1768315993907,0.95878307,3150.7,3148.6,1.268]
[1768315993908,0.9588131,3150.6,3148.6,1.268]
[1768315994107,4.69751031,3150.5,3148.5,3.40015399]
[1768315994309,4.53865031,3150.4,3148.5,3.40015399]
[1768315994608,0.9588131,3150.3,3148.5,3.40015399]
[1768315995212,0.9588131,3150.3,3148.5,3.55911399]
[1768315995411,0.9588131,3150.3,3148.6,3.55910399]
[1768315995614,0.9588131,3150.2,3148.6,3.55910399]
[1768315995809,0.15886,3150.5,3148.6,3.55910399]
[1768315996112,0.96008159,3150.4,3148.6,3.55910399]
[1768315996305,3.43178421,3150.6,3148.6,3.40015399]
[1768315996306,2.90562577,3150.3,3148.6,3.40015399]
[1768315996501,0.96008159,3150.2,3148.6,3.40015399]
[1768315996902,0.96008159,3150.2,3148.2,1.42697]
[1768315997107,0.96008159,3150.2,3148.3,3.59569481]
[1768315997307,0.96008159,3150.2,3148.4,3.59568481]
[1768315997506,0.96008159,3150.2,3148.7,3.59567481]
[1768315997705,1.78927466,3150.8,3148.7,3.59567481]
[1768315997706,0.96008159,3150.1,3148.7,3.59567481]
[1768315997917,1.78927466,3150.8,3148.7,3.59567481]
[1768315998112,0.96177338,3150.7,3148.7,3.59567481]
[1768315998418,0.00260048,3150.8,3149.3,3.43672481]
[1768315999710,0.00260048,3150.8,3149.2,0.15892]
[1768316000216,0.00260048,3150.8,3149.2,3.59564481]
[1768316002014,0.00260048,3150.8,3149.4,3.43672481]
[1768316002802,0.00260048,3150.8,3149.4,3.59563481]
[1768316003311,6.475,3152.0,3149.9,3.43672481]
[1768316003516,0.96151427,3151.9,3150.1,3.43672481]
[1768316003705,0.96151427,3151.8,3150.1,3.43672481]
[1768316004018,0.96151427,3151.7,3150.1,3.43672481]
[1768316004312,0.96151427,3151.6,3150.1,3.43672481]
[1768316004516,0.00281021,3151.7,3150.1,3.43672481]
[1768316004707,0.96119425,3151.6,3150.1,3.43672481]
[1768316004902,0.00281021,3151.7,3150.1,3.43672481]
[1768316005206,0.00281021,3151.7,3149.1,3.43672481]
[1768316005207,3.43178421,3151.5,3149.1,3.43672481]
[1768316005403,1.78667418,3151.2,3149.1,3.43672481]
[1768316005607,0.15881,3151.5,3149.6,3.43672481]
[1768316005806,0.96253172,3151.4,3149.8,3.59561481]
[1768316006003,0.00281021,3151.7,3149.9,3.43672481]
[1768316006208,0.96251846,3151.6,3149.9,3.59561481]
[1768316006518,0.00281021,3151.7,3149.9,3.59561481]
[1768316006709,0.9623256,3151.6,3149.9,3.59561481]
[1768316006909,0.00281021,3151.7,3149.9,3.59561481]
[1768316007115,0.96231042,3151.6,3150.0,3.59560481]
[1768316007314,0.00281021,3151.7,3150.1,3.43672481]
[1768316007518,0.00281021,3151.7,3150.4,3.59558481]
[1768316007817,0.00281021,3151.7,3150.4,3.59877895]
[1768316008219,0.00281021,3151.7,3150.4,0.00319414]
[1768316008515,0.00281021,3151.7,3150.4,3.43991895]
[1768316012616,0.00281021,3151.7,3150.4,3.59877895]
[1768316014212,0.00281021,3151.7,3150.4,0.00319414]
[1768316014620,0.00281021,3151.7,3150.4,3.43991895]
[1768316014923,0.00281021,3151.7,3150.4,3.59877895]
[1768316015313,0.00281021,3151.7,3150.6,3.48341918]
[1768316015515,3.59053421,3152.6,3150.6,3.48341918]
[1768316015720,0.15875,3152.6,3150.8,3.48341918]
[1768316016524,0.16240852,3152.6,3150.8,3.48341918]
[1768316016918,0.00365852,3152.6,3150.8,3.64225918]
[1768316017725,0.00365852,3152.6,3151.0,3.48341918]
[1768316017918,0.00365852,3152.6,3151.2,3.48341918]
[1768316018125,0.1587,3153.6,3151.2,3.48341918]
[1768316018426,1.78667418,3153.7,3151.7,3.48341918]
[1768316018934,5.32490945,3153.7,3151.7,3.48341918]
[1768316019224,5.32872408,3153.7,3151.7,3.48341918]
[1768316019431,5.48742408,3153.7,3151.7,3.48341918]
[1768316019817,5.48742408,3153.7,3151.7,3.64221918]
[1768316019818,1.94918881,3153.7,3151.7,3.64221918]
[1768316020021,0.00381463,3153.7,3152.1,3.48341918]
[1768316021225,0.00381463,3153.7,3152.2,3.48341918]
[1768316022733,1.57192374,3153.4,3152.2,3.48341918]
[1768316024623,1.57192374,3153.0,3151.9,1.267]
[1768316025227,1.57192374,3153.0,3151.7,3.48341918]
[1768316027624,1.57192374,3153.0,3151.7,3.64221918]
[1768316027819,0.16251463,3153.7,3151.9,3.48341918]
[1768316028024,1.57192374,3153.5,3151.9,3.64220918]
[1768316028835,1.57192374,3153.1,3151.9,3.64220918]
[1768316029236,1.57192374,3153.5,3151.9,3.64220918]
[1768316029432,1.57192374,3153.5,3152.1,3.48341918]
[1768316029638,0.00381463,3153.7,3152.3,3.48341918]
[1768316031230,0.00381463,3153.7,3152.3,3.64218918]
[1768316032432,1.57192374,3153.6,3152.3,3.64218918]
[1768316034239,1.57192374,3153.2,3152.1,1.266]
[1768316034435,0.00381463,3153.7,3152.2,3.48341918]
[1768316034735,1.57192374,3153.6,3152.2,3.48341918]
[1768316034930,1.57192374,3153.6,3152.3,0.15877]
[1768316035233,1.57192374,3153.2,3151.8,1.42479]
[1768316036035,0.00381463,3153.7,3151.8,1.42479]
[1768316036235,1.57192374,3152.8,3151.8,0.15879]
[1768316037241,0.1587,3153.6,3151.8,3.64220918]
[1768316037242,1.57192374,3153.2,3151.8,3.64220918]
[1768316037442,1.57192374,3153.3,3151.8,3.64220918]
[1768316037941,1.57192374,3152.9,3151.8,3.64220918]
[1768316038743,1.57192374,3152.9,3151.4,4.74941918]
[1768316039539,1.57192374,3152.9,3151.5,3.48341918]
[1768316040029,0.00381463,3153.7,3151.4,1.266]
[1768316040030,1.57192374,3152.5,3151.4,1.266]
[1768316040231,1.57192374,3152.1,3151.4,1.266]
[1768316040441,3.53823527,3153.2,3151.1,3.48341918]
[1768316040747,1.57192374,3152.6,3151.1,3.64224918]
[1768316041844,1.57192374,3152.6,3151.1,4.90824918]
[1768316042040,1.57192374,3152.2,3151.1,3.64224918]
[1768316043335,0.15874,3152.9,3151.1,3.64224918]
[1768316043534,2.53608122,3152.8,3151.1,3.64224918]
[1768316043751,0.96415748,3152.7,3151.1,3.64224918]
[1768316043950,1.57192374,3152.8,3151.1,3.64224918]
[1768316044247,0.96412403,3152.7,3151.1,3.64224918]
[1768316044439,1.57192374,3152.8,3151.1,3.64224918]
[1768316044637,0.9644848,3152.7,3151.1,3.64224918]
[1768316044837,1.57192374,3152.8,3151.1,3.64224918]
[1768316045039,0.9644848,3152.7,3151.1,3.64224918]
[1768316045238,1.57192374,3152.8,3151.1,3.64224918]
[1768316045441,0.96488718,3152.7,3151.1,3.64224918]
[1768316045744,0.96488718,3152.7,3150.6,3.175]
[1768316045745,1.57192374,3152.1,3150.6,3.60362909]
[1768316045947,1.57192374,3151.7,3150.6,3.44477909]
[1768316046142,1.57192374,3152.1,3150.4,3.44797323]
[1768316046337,1.57192374,3152.5,3150.4,3.60683323]
[1768316046539,0.15874,3152.8,3150.9,3.44477909]
[1768316046738,0.96472355,3152.7,3151.1,0.15883]
[1768316046942,1.57192374,3153.0,3151.2,3.60359909]
[1768316047148,0.96463443,3152.9,3151.4,3.44477909]
[1768316047347,1.57192374,3153.0,3151.4,3.44477909]
[1768316048448,1.57192374,3152.6,3151.4,3.44477909]
[1768316049250,1.57192374,3153.4,3151.4,3.44477909]
[1768316049451,0.96473549,3153.3,3151.4,3.60358909]
[1768316049642,1.57192374,3153.0,3151.4,3.60358909]
[1768316050456,1.57192374,3153.1,3151.4,3.60358909]
[1768316051155,1.57192374,3153.1,3151.4,3.44477909]
[1768316051455,1.57192374,3152.7,3151.0,0.15883]
[1768316051649,1.57192374,3152.3,3151.1,1.267]
[1768316052749,1.57192374,3152.8,3151.2,3.44477909]
[1768316053063,1.57192374,3152.6,3151.2,3.44477909]
[1768316053257,1.57192374,3152.6,3151.1,1.266]
[1768316053456,1.57192374,3152.2,3151.0,0.15883]
[1768316053661,1.57192374,3152.2,3150.7,4.71077909]
[1768316053861,1.57192374,3152.2,3150.7,4.86962909]
[1768316055561,1.57192374,3151.4,3150.1,3.44477909]
[1768316055754,1.57603322,3151.4,3150.1,3.44477909]
[1768316056264,0.00410948,3151.4,3150.1,3.44477909]
[1768316056562,0.00410948,3151.4,3150.0,1.267]
[1768316056563,0.00410948,3151.4,3150.4,3.4321814]
[1768316056953,0.00410948,3151.4,3150.4,0.00319414]
[1768316056954,1.57603322,3151.4,3150.4,0.00319414]
[1768316057463,0.00410948,3151.4,3150.4,0.00319414]
[1768316063967,1.57192374,3151.3,3150.4,0.00319414]
[1768316065573,0.00410948,3151.4,3150.4,0.00319414]
[1768316066964,1.57192374,3151.3,3149.9,3.42898726]
[1768316067163,1.57192374,3151.3,3149.7,1.267]
[1768316067354,1.73074374,3151.3,3149.4,3.42898726]
[1768316067554,1.57192374,3150.9,3149.4,3.42898726]
[1768316068063,1.57192374,3150.9,3149.4,3.43162637]
[1768316068462,1.57192374,3150.9,3149.4,0.00263911]
[1768316068862,1.73078374,3150.5,3149.4,0.00263911]
[1768316069062,1.73078374,3150.5,3148.6,1.42595]
[1768316069270,1.57192374,3150.1,3148.0,3.42898726]
[1768316069565,1.57192374,3149.6,3148.0,3.42898726]
[1768316069959,1.57192374,3149.6,3148.0,3.43145139]
[1768316070160,1.73082374,3149.6,3148.0,3.43145139]
[1768316073665,1.73082374,3149.6,3148.0,0.00246413]
[1768316073666,5.37164441,3149.6,3148.0,0.00246413]
[1768316075370,0.1589,3149.6,3148.0,3.51480155]
[1768316075670,1.57192374,3149.5,3148.0,3.51480155]
[1768316076569,1.57192374,3149.5,3148.0,0.00246413]
[1768316076872,1.73083374,3149.5,3148.0,0.00246413]
[1768316077077,1.57192374,3149.1,3148.0,0.00246413]
[1768316077274,1.57493192,3149.1,3148.0,0.00246413]
[1768316078373,1.57192374,3148.7,3147.1,3.51233742]
[1768316078770,1.57192374,3148.3,3146.7,4.77933742]
[1768316078973,1.57192374,3148.3,3146.7,3.51233742]
[1768316079677,1.57192374,3148.3,3146.7,3.5151147]
[1768316079882,1.57192374,3147.9,3146.7,3.5151147]
[1768316080071,1.57192374,3147.9,3146.7,0.00277728]
[1768316080284,0.25710344,3148.8,3145.6,3.51233742]
[1768316080285,1.57192374,3147.5,3145.6,3.51233742]
[1768316080469,1.57192374,3147.1,3145.6,3.51233742]
[1768316081178,1.57192374,3146.3,3144.8,3.51233742]
[1768316081385,0.00369012,3146.3,3145.6,0.00302641]
[1768316083278,0.00369012,3146.3,3145.6,3.51536383]
[1768316083575,3.53416607,3147.5,3145.6,3.51536383]
[1768316083782,2.82866933,3149.1,3145.6,3.51536383]
[1768316083783,5.16366693,3148.0,3145.6,3.51536383]
[1768316084384,5.1667944,3148.0,3145.6,3.51536383]
[1768316085076,3.37515607,3147.8,3145.6,4.78336383]
[1768316086379,3.37515607,3147.8,3145.7,3.51233742]
[1768316086683,0.15901,3147.6,3145.7,4.78033742]
[1768316087786,0.15901,3147.6,3145.8,3.51233742]
[1768316088377,3.37515607,3147.8,3145.8,3.51233742]
[1768316089089,3.53415607,3147.7,3145.8,4.78033742]
[1768316089285,3.37515607,3147.4,3145.6,0.00302641]
[1768316089590,0.00312747,3148.0,3145.6,0.00302641]
[1768316089591,3.53419607,3146.9,3145.6,0.00302641]
[1768316091685,0.15905,3146.8,3145.6,0.00302641]
[1768316091885,3.53420607,3146.7,3144.7,3.51233742]
[1768316092080,1.78851086,3147.0,3144.7,3.51233742]
[1768316092081,3.53421607,3146.6,3144.7,3.51233742]
[1768316092589,1.272,3147.3,3144.0,3.51233742]
[1768316092590,3.37515607,3146.2,3144.0,3.51233742]
[1768316092787,0.15908,3146.1,3144.0,3.51477848]
[1768316093481,0.15908,3146.1,3144.0,4.78277848]
[1768316093677,0.15908,3146.1,3144.1,3.51233742]
[1768316093884,1.78851086,3146.5,3144.1,3.67151742]
[1768316094077,3.37515607,3146.7,3144.3,3.51233742]
[1768316094286,3.37515607,3146.7,3144.0,1.27044106]
[1768316094287,3.37515607,3146.7,3144.5,3.51233742]
[1768316094792,0.15905,3146.8,3144.5,3.51233742]
[1768316094990,0.15905,3146.8,3144.8,3.51233742]
[1768316095491,0.15905,3146.8,3144.8,3.67148742]
[1768316095885,0.15905,3146.8,3144.9,4.78033742]
[1768316096086,0.15905,3146.8,3145.0,3.51233742]
[1768316096380,3.37515607,3147.2,3145.0,3.51233742]
[1768316096691,0.95852773,3147.1,3145.0,3.51233742]
[1768316096887,3.37515607,3147.2,3145.0,3.51233742]
[1768316097095,1.94753086,3147.3,3145.2,3.51233742]
[1768316097288,0.95955243,3147.2,3145.2,3.51233742]
[1768316097484,3.37515607,3147.2,3145.2,4.78033742]
[1768316097977,3.37515607,3147.2,3145.3,3.51233742]
[1768316098178,0.96072772,3147.1,3145.3,3.51233742]
[1768316098380,3.37515607,3147.2,3145.4,0.15912]
[1768316098591,42.072,3147.8,3145.4,0.15912]
[1768316098592,3.37515607,3147.7,3145.5,3.51233742]
[1768316098792,4.33585199,3147.6,3145.5,3.51233742]
[1768316098993,0.96069592,3147.5,3145.5,3.51233742]
[1768316099196,0.96069592,3147.4,3145.5,3.51233742]
[1768316099493,0.96069592,3147.3,3145.5,3.51233742]
[1768316099691,0.96069592,3147.2,3145.5,3.51233742]
[1768316099994,0.96069592,3147.1,3145.5,3.51233742]
[1768316100190,0.15901,3147.5,3145.5,3.51233742]
[1768316100492,0.96175788,3147.4,3145.5,3.51233742]
[1768316100693,3.37515607,3147.2,3145.4,1.268]
[1768316100992,3.37515607,3147.2,3145.0,4.78033742]
[1768316100993,3.37515607,3147.0,3145.0,4.78033742]
[1768316101484,3.37515607,3147.0,3145.1,3.51233742]
[1768316101692,3.37515607,3147.0,3144.8,0.15915]
[1768316101693,5.16366693,3146.8,3144.8,3.67148742]
[1768316102185,0.96252646,3146.7,3144.9,3.67147742]
[1768316102495,3.53417607,3147.4,3145.4,3.51233742]
[1768316102691,3.37515607,3147.2,3145.4,3.51233742]
[1768316102987,3.53419607,3146.9,3144.9,4.78033742]
[1768316103195,0.96256876,3146.8,3144.9,4.78033742]
[1768316103697,4.453,3147.8,3144.9,4.78033742]
[1768316103698,3.53727354,3148.0,3145.7,3.67143742]
[1768316103882,3.53727354,3148.0,3145.7,3.51233742]
[1768316103883,0.15901,3147.6,3145.7,3.51233742]
[1768316104193,3.37515607,3147.4,3145.6,1.268]
[1768316104393,0.96298623,3147.3,3145.6,1.268]
[1768316104695,0.96298623,3147.3,3145.7,3.42432295]
[1768316104988,0.96298623,3147.2,3145.7,3.42432295]
[1768316105187,0.96298623,3147.1,3145.7,3.42432295]
[1768316105488,0.15901,3147.5,3145.7,3.42432295]
[1768316105688,0.96448385,3147.4,3145.9,3.42432295]
[1768316105890,0.96448385,3147.3,3145.9,3.42432295]